Workbook

Sheet Front page
B3: Buildings Sector - CB1 Performance Indicators
B7: Description: | E7: The Welsh Government has developed a comprehensive performance monitoring framework to track progress towards meeting the emissions reductions set out in Prosperity for All: A Low Carbon Wales. This workbook contains indicators relating to progress in the buildings sector. These indicators track the implementation of decarbonisation policies and proposals, and the key drivers of emissions.
B9: Version: | E9: 1.1
B11: Published: | E11: [Insert publication date]
B13: Contact details: | E13: climatechange@gov.wales
B18: Disclaimer These spreadsheets have been prepared by Ricardo Energy & Environment, a trading name of Ricardo-AEA Ltd under contract. Ricardo Energy & Environment accepts no liability whatsoever to any third party for any loss or damage arising from any interpretation or use of the information contained in this document, or reliance on any views expressed therein. Welsh Government is looking to build on the development of the indicator sets and is looking to improve the accessibility of the underlying indicator data for future carbon budgets
F66: ok

Sheet Introduction
A1: INTRODUCTION Please read before continuing

Sheet Notes
B2: Overarching notes
B3: Note number | D3: Note
B4: 1 | D4: "CB1 progress" assesses the % change over CB1. This usually covers the years 2016-2020, but may use other years if data for this time period is unavailable (e.g. 2017-2020 in the absence of 2016 data). For Tier 3 indicators where a desired direction of travel could not be assigned, "CB1 progress" is replaced with "total delivery over CB1" (e.g. total investment delivered during CB1, or total number of projects delivered).
B5: 2 | D5: Proposals are in red text
B6: 3 | D6: 2020 progress relates to the anticipated contribution to the CCC’s 2020 pathway, and assesses whether or not this contribution (usually expressed as an intended emissions reduction from the base year) has been met.
B7: 4 | D7: The red box surrounding data on graphs and tables indicates the years included within CB1, and therefore those included within the "CB1 progress" assessment.
B10: Sector specfiic notes
B11: Note code | D11: Note
B12: N/A

Sheet Contents
B2: Buildings Sector Performance Indicators
B4: Indicator number | C4: Policy | D4: Indicator | E4: Tier | F4: Desired direction of travel | G4: CB1 progress or delivery [Note 1] | H4: Progress since 2020 | I4: Unit
B5: B3.1 | C5: 37 | D5: ='B3.1'!C3 -> Warm Homes funding for energy efficiency | E5: 3 | F5: N/A | G5: ='B3.1'!G3 -> 143 | H5: ='B3.1'!H3 -> No data | I5: ='B3.1'!I3 -> £m
B6: B3.2 | C6: 37 | D6: ='B3.2'!C3 -> Reach of Warm Homes programme | E6: 3 | F6: N/A | G6: ='B3.2'!G3 -> 26,847 | H6: ='B3.2'!H3 -> No data | I6: ='B3.2'!I3 -> Number of homes
B7: B3.3 | D7: ='B3.3'!C3 -> UKG housing energy efficiency improvement schemes | E7: 3 | F7: N/A | G7: ='B3.3'!G3 -> 73,972 | H7: ='B3.3'!H3 -> 19,552 | I7: ='B3.3'!I3 -> Number of ECO measures delivered
B8: B3.4 | C8: 40 | D8: ='B3.4'!C3 -> Support provided for building innovation schemes | E8: 3 | F8: N/A | G8: ='B3.4'!G3 -> 118,092,847 | H8: ='B3.4'!H3 -> No data | I8: ='B3.4'!I3 -> £
B9: B3.5 | D9: ='B3.5'!C3 -> WGES investment in energy efficiency projects | E9: 3 | F9: N/A | G9: ='B3.5'!G3 -> 51,352,640 | H9: ='B3.5'!H3 -> 27,634,952 | I9: ='B3.5'!I3 -> £
B10: B3.6 | D10: ='B3.6'!C3 -> Number of building energy efficiency projects supported through WGES | E10: 3 | F10: N/A | G10: ='B3.6'!G3 -> 205 | H10: ='B3.6'!H3 -> 62 | I10: ='B3.6'!I3 -> Number of projects
B11: B3.7 | C11: 43 | D11: ='B3.7'!C3 -> Business Wales: Number of businesses supported to adopt or improve environmental sustainability strategies | E11: 3 | F11: N/A | G11: ='B3.7'!G3 -> 2,479 | H11: ='B3.7'!H3 -> No data | I11: ='B3.7'!I3 -> Number of businesses
B12: B3.8 | C12: 11 | D12: ='B3.8'!C3 -> Support provided through UKG Renewable Heat Incentive Scheme | E12: 3 | F12: N/A | G12: ='B3.8'!G3 -> 2,597 domestic & 613 non-domestic installations | H12: ='B3.8'!H3 -> 1,091 domestic & 95 non-domestic installations | I12: ='B3.8'!I3 -> Number of installations
B13: B3.9 | C13: 44 | D13: ='B3.9'!C3 -> Uptake of Smart Flexible and Digitalised Systems to reduce home heat demand | E13: 3 | F13: N/A | G13: ='B3.9'!G3 -> 34 | H13: ='B3.9'!H3 -> No data | I13: ='B3.9'!I3 -> Number of projects
B14: B3.10 | C14: 38 | D14: ='B3.10'!C3 -> Number of social homes compliant with WHQS | E14: 3 | F14: Increase | G14: ='B3.10'!G3 -> 3 | H14: ='B3.10'!H3 -> 0 | I14: ='B3.10'!I3 -> Number of homes compliant
B15: B3.11 | C15: 38 | D15: ='B3.11'!C3 -> Proportion of dwellings with adequate energy performance (SAP>65) | E15: 3 | F15: Increase | G15: ='B3.11'!G3 -> 3 | H15: ='B3.11'!H3 -> 0 | I15: ='B3.11'!I3 -> % fully compliant
B16: B3.12 | C16: 41 | D16: ='B3.12'!C3 -> Proportion of BREEAM Certifications rated 'Excellent' or 'Outstanding' | E16: 3 | F16: Increase | G16: ='B3.12'!G3 -> 3 | H16: ='B3.12'!H3 -> 0 | I16: ='B3.12'!I3 -> % rated "Excellent" or "Outstanding"
B17: B3.13 | D17: ='B3.13'!C3 -> Smart meter roll-out | E17: 3 | F17: Increase | G17: ='B3.13'!G3 -> No data | H17: ='B3.13'!H3 -> No data | I17: ='B3.13'!I3 -> TBD
B19: Indicator number | C19: Indicator | E19: Tier | F19: Desired direction of travel | G19: CB1 progress | H19: Progress since 2020 | I19: Unit
B20: B2.1 | C20: ='B2.1'!C3 -> Total Buildings sector energy demand | E20: 2 | F20: Decrease | G20: ='B2.1'!G3 -> 2 | H20: ='B2.1'!H3 -> 0 | I20: ='B2.1'!I3 -> kilotonnes of oil equivalent (ktoe)
B21: B2.2 | C21: ='B2.2'!C3 -> Average household electricity consumption | E21: 2 | F21: Decrease | G21: ='B2.2'!G3 -> 2 | H21: ='B2.2'!H3 -> 0 | I21: ='B2.2'!I3 -> kWh sales per meter
B22: B2.3 | C22: ='B2.3'!C3 -> Average household gas consumption | E22: 2 | F22: Decrease | G22: ='B2.3'!G3 -> 2 | H22: ='B2.3'!H3 -> 0 | I22: ='B2.3'!I3 -> kWh sales per meter
B23: B2.4 | C23: ='B2.4'!C3 -> Installed capacity of good quality CHP schemes | E23: 2 | F23: Increase | G23: ='B2.4'!G3 -> 1 | H23: ='B2.4'!H3 -> 0 | I23: ='B2.4'!I3 -> MWe
B25: Indicator number | C25: Indicator | E25: Tier | F25: Desired direction of travel | G25: CB1 progress | H25: 2020 Progress [Note 3] | I25: Unit
B26: B1.1 | C26: ='B1.1'!C3 -> Buildings Sector GHG emissions | E26: 1 | F26: Decrease | G26: ='B1.1'!G3 -> 2.00 | H26: ='B1.1'!I3 -> ü | I26: ktCO2e
B27: B1.2 | C27: ='B1.2'!C3 -> Emissions from residential buildings | E27: 1 | F27: Decrease | G27: ='B1.2'!G3 -> 2.00 | H27: N/A | I27: ktCO2e
B28: B1.3 | C28: ='B1.3'!C3 -> Emissions from business sector buildings | E28: 1 | F28: Decrease | G28: ='B1.3'!G3 -> 1.00 | H28: N/A | I28: ktCO2e
B29: B1.4 | C29: ='B1.4'!C3 -> Emissions from public buildings | E29: 1 | F29: Decrease | G29: ='B1.4'!G3 -> 3.00 | H29: N/A | I29: ktCO2e
B32: Buildings Sector Policies and Proposals
B34: No. | C34: Policy/proposal [Note 2]
B35: 37 | C35: Funding and Delivery of our Warm Homes Programme
B36: 38 | C36: Raising standards through our Welsh Housing Quality Standards
B37: 8 | C37: Improving our Evidence-base around residential retrofit programme
B38: 39 | C38: Setting higher energy efficiency standards for new builds through reviewing Building Regulations Part L (Conservation of Fuel and Power)
B39: 40 | C39: Driving innovation through our Innovative Housing Programme
B40: 9 | C40: Developing Innovative construction techniques to reduce and meet the energy demand within buildings and increasing the use of sustainable materials
B41: 41 | C41: Funding more efficient buildings through our Sustainable buildings funding policy
B42: 42 | C42: Reducing emissions from listed buildings and scheduled monuments
B43: 43 | C43: Providing advice and support through Business Wales
B44: 10 | C44: Scoping out the challenges and opportunities around low-carbon heat
B45: 11 | C45: Increase the use of Waste Heat and low carbon heat
B46: 44 | C46: Piloting Smart Flexible and Digitalised System to reduce demand
B47: 45 | C47: Incentivising energy efficiency of homes through Help to Buy Wales
B49: For full details on each policy and proposal, see the LCDP1 plan at the link below:
B50: https://gov.wales/sites/default/files/publications/2019-06/low-carbon-delivery-plan_1.pdf

Sheet OverviewDiagram
A1: Overview Diagram
A2: The diagram below summarises "CB1 progress" for each indicator in this sector. GREEN cells indicate that the desired direction of travel was met, RED cells indicate that the desired direction of travel was not met, and AMBER cells indicate that a significant trend in either direction could not be observed (using a 5% threshold - see "Introduction" tab). Grey cells mean no data available or a desired direction of travel (and thus rating) could not be assigned.
C5: Actions to reduce energy demand | G5: Increasing the use of low carbon heat
C6: Increasing the energy efficiency of buildings | E6: Driving behaviour change
C7: B3.1 Warm Homes funding for energy efficiency | E7: B3.7 Business Wales: Number of businesses supported to adopt or improve environmental sustainability strategies | G7: B3.8 Support provided through UKG Renewable Heat Incentive Scheme
C8: B3.2 Reach of Warm Homes programme | E8: B3.9 Uptake of Smart Flexible and Digitalised Systems to reduce home heat demand
C9: B3.3 UKG housing energy efficiency improvement schemes
C10: B3.4 Support provided for building innovation schemes
C11: B3.5 WGES investment in energy efficiency projects
C12: B3.6 Number of building energy efficiency projects supported through WGES
C13: B3.10 Number of social homes compliant with WHQS
C14: B3.11 Proportion of dwellings with adequate energy performance (SAP>65)
C15: B3.12 Proportion of BREEAM Certifications rated 'Excellent' or 'Outstanding'
C16: B3.13 Smart meter roll-out
C18: B2.1 Total Buildings sector energy demand
C19: B2.2 Average household electricity consumption | E19: B2.3 Average household gas consumption
C20: B2.4 Installed capacity of good quality CHP schemes
C22: B1.1 Buildings Sector GHG Emissions (CB1 progress)
C24: B1.2 Emissions from residential buildings | D24: B1.3 Emissions from business sector buildings | F24: B1.4 Emissions from public sector buildings

Sheet B3.1
B2: B3.1 | C2: Indicator | E2: Tier | F2: Desired direction of travel [Note 1] | G2: CB1 progress or delivery [Note 1] | H2: Progress since 2020 | I2: Unit
C3: Warm Homes funding for energy efficiency | E3: 3 | F3: N/A | G3: =H7 -> 143.3 | H3: =H8 -> No data | I3: £m
H6: Total delivery | I6: Rating
G7: CB1 progress | H7: =(SUM(J18:J22))+((SUM(M17:M22))) -> 143.3 | I7: N/A
G8: Progress since 2020 | H8: No data | I8: N/A
G11: Financial Year | H11: Reference Year | I11: Nest Period | J11: Yearly Total | K11: Cumulative Total | L11: Arbed Period | M11: Yearly Total | N11: Cumulative Total | O11: Sum
G12: 2010/11 | H12: 2010 | I12: Nest 1 | J12: N/A | L12: Arbed 1 | M12: 68
G13: 2011/12 | H13: 2011 | J13: 15.3 | O13: =J13+M12 -> 83.3
G14: 2012/13 | H14: 2012 | J14: 19.5 | K14: =J13+J14 -> 34.8 | L14: Arbed 2 | M14: 65.4 | N14: =M12+M14 -> 133.4 | O14: =K14+N14 -> 168.2
G15: 2013/14 | H15: 2013 | J15: 16.2 | K15: =K14+J15 -> 51.0 | O15: =K15+N14 -> 184.4
G16: 2014/15 | H16: 2014 | J16: 18.0 | K16: 69.0 | O16: =K16+N14 -> 202.4
G17: 2015/16 | H17: 2015 | J17: 25.5 | K17: 94.5 | L17: Arbed LA Partnership | M17: 28.4 | N17: =N14+M17 -> 161.8 | O17: =K17+N17 -> 256.3
G18: 2016/17 | H18: 2016 | J18: 19.5 | K18: 114.0 | O18: =K18+N17 -> 275.8
G19: 2017/18 | H19: 2017 | J19: 19.5 | K19: 133.5 | O19: =K19+N17 -> 295.3
G20: 2018/19 | H20: 2018 | I20: Nest 2 | J20: 15.9 | K20: 149.4 | L20: Arbed 3 | M20: 1.2 | N20: =N17+M20 -> 163 | O20: =K20+N20 -> 312.4
G21: 2019/2020 | H21: 2019 | J21: 20.6 | K21: 170.0 | M21: 18.1 | N21: =N20+M21 -> 181.1 | O21: =K21+N21 -> 351.1
G22: 2020/2021 | H22: 2020 | J22: 20.1 | K22: 190.1 | N22: =N21+R17 -> 181.1 | O22: =K22+N22 -> 371.2
G23: Totals | I23: Nest Total | J23: =SUM(J12:J22) -> 190.1 | L23: Arbed Total | M23: =SUM(M12:M22) -> 181.1 | O23: =O22 -> 371.2
B26: Indicator context:
B27: The Warm Homes Programme provide energy efficiency improvements to those most likely to be in fuel poverty, including low income and vulnerable households. Improvements include home insulation and more efficient boilers. This indicator analyses funding for domestic retrofitting to increase energy efficiency of buildings under Welsh Government’s Warm Homes Programme, Nest and Arbed.
B29: Notes:
B30: Data given in millions £
B31: Years reported are derived from calendar years
B32: Only the total for Arbed funding is available between 2015 and 2017 and the 2020 value is not available, so the CB1 total is approximate.
B33: The investment in Arbed during 2020-21 is not clear from reports so has been left blank
B35: Trends:
B36: A total of around £143 million has been delivered under the Warm Homes programme between 2016 and 2020 (£95.6 million from Nest, and £47.7 million from Arbed). However, only the total for Arbed funding is available between 2015 and 2017 and the 2020 value is not available, so the CB1 total is approximate.
B38: Data source: | C38: Warm Homes Programme Annual Reports
B39: Release date: | C39: 2021-04-01
B40: External link: | C40: See notes below
B41: Notes: | C41: Nest annual reports: https://nest.gov.wales/about-nest/
C42: Arbed annual reports: https://www.arbedambyth.wales/eng/annual-report-2019-20.pdf https://www.arbedambyth.wales/eng/annual-report-2018-19.pdf
C43: Warm Homes Programme Audit: https://www.audit.wales/sites/default/files/publications/The_Welsh_Governments_Warm_Homes_Programme_English.pdf

Sheet B3.2
B2: B3.2 | C2: Indicator | E2: Tier | F2: Desired direction of travel [Note 1] | G2: CB1 progress or delivery [Note 1] | H2: Progress since 2020 | I2: Unit
C3: Reach of Warm Homes programme | E3: 3 | F3: N/A | G3: =H7 -> 26,847 | H3: =H8 -> No data | I3: Number of homes
H6: Total delivery | I6: Rating
G7: CB1 progress | H7: =SUM(J18:J22)+SUM(M18:M22) -> 26,847 | I7: N/A
G8: Progress since 2020 | H8: No data | I8: N/A
G11: Financial Year | H11: Reference Year | I11: Nest Period | J11: Yearly Total | K11: Cumulative Total | L11: Arbed Period | M11: Yearly Total | N11: Cumulative Total | O11: Sum
G12: 2010/11 | H12: 2010 | I12: Nest 1 | J12: 0 | L12: Arbed 1 | M12: 7,585
G13: 2011/12 | H13: 2011 | J13: 3,674 | O13: =J13+M12 -> 11,259
G14: 2012/13 | H14: 2012 | J14: 4,900 | K14: =J13+J14 -> 8,574 | L14: Arbed 2 | M14: 6,535 | N14: =M12+M14 -> 14,120 | O14: =K14+N14 -> 22,694
G15: 2013/14 | H15: 2013 | J15: 4,981 | K15: =K14+J15 -> 13,555 | O15: =K15+N14 -> 27,675
G16: 2014/15 | H16: 2014 | J16: 4,266 | K16: 17,821 | O16: =K16+N14 -> 31,941
G17: 2015/16 | H17: 2015 | J17: 6,125 | K17: 23,946 | L17: Arbed LA Partnership | M17: 2,253 | N17: =N14+M17 -> 16,373 | O17: =K17+N17 -> 40,319
G18: 2016/17 | H18: 2016 | J18: 5,540 | K18: 29,486 | M18: 426 | N18: =N17+M18 -> 16,799 | O18: 46,285
G19: 2017/18 | H19: 2017 | J19: 4,457 | K19: 33,943 | M19: 382 | N19: =N18+M19 -> 17,181 | O19: =K19+N19 -> 51,124
G20: 2018/19 | H20: 2018 | I20: Nest 2 | J20: 3,817 | K20: 37,760 | L20: Arbed 3 | M20: 145 | N20: =N19+M20 -> 17,326 | O20: 55,086
G21: 2019/20 | H21: 2019 | J21: 4,544 | K21: 42,304 | M21: 1,945 | N21: =N20+M21 -> 19,271 | O21: 61,575
G22: 2020/21 | H22: 2020 | J22: 4,559 | K22: 46,863 | M22: 1,032 | N22: =N21+M22 -> 20,303 | O22: 67,166
G23: Totals | I23: Nest Total | J23: =K22 -> 46,863 | L23: Arbed Total | M23: =N22 -> 20,303 | O23: =J23+M23 -> 67,166
B28: Indicator context:
B29: Information on the number of homes benefitting from home energy efficiency improvements provided by the Warm Homes Programme
B31: Notes:
B35: Trends:
B36: The reach of the Warm Homes Programme has increased steadily over time and, as of 2020, had improved the energy performance of 67,166 homes. 26,847 of these homes were improved over the CB1 period (2016-2020). In 2020, Nest provided energy efficiency works for 4,559 homes compared to a total of 4,544 the year before. Arbed retrofitted 1,945 homes in 2019, coinciding with a large funding increase, and 1,032 homes in 2020.
B38: Data source: | C38: Warm Homes Programme Annual Reports
B39: Release date: | C39: 2021-04-01
B40: External link: | C40: See notes below
B41: Notes: | C41: Nest annual reports: https://nest.gov.wales/about-nest/
C42: Arbed annual reports: https://www.arbedambyth.wales/eng/annual-report-2019-20.pdf https://www.arbedambyth.wales/eng/annual-report-2018-19.pdf
C43: Warm Homes Programme Audit: https://www.audit.wales/sites/default/files/publications/The_Welsh_Governments_Warm_Homes_Programme_English.pdf

Sheet B3.3
B2: B3.3 | C2: Indicator | E2: Tier | F2: Desired direction of travel [Note 1] | G2: CB1 progress or delivery [Note 1] | H2: Progress since 2020 | I2: Unit
C3: UKG housing energy efficiency improvement schemes | E3: 3 | F3: N/A | G3: =H7 -> 73972 | H3: =H8 -> 19552 | I3: Number of ECO measures delivered
H6: Total delivery | I6: Rating
G7: CB1 progress | H7: =SUM(H15:H19) -> 73972 | I7: N/A
G8: Progress since 2020 | H8: =SUM(H20:H21) -> 19552 | I8: N/A
G11: Year | H11: Total number of ECO measures delivered | I11: Total number of Green Deal plans 'live' or 'completed' | J11: Cumulative total of measures installed/plans delivered | K11: Households in receipt of ECO measures
G12: 2013 | H12: 31609 | I12: 5 | J12: =SUM(H12:I12) -> 31614 | K12: 25501
G13: 2014 | H13: 34029 | I13: 212 | J13: =J12+SUM(H13:I13) -> 65855 | K13: 26275
G14: 2015 | H14: 19765 | I14: 441 | J14: 86061 | K14: 14356
G15: 2016 | H15: 21874 | I15: 27 | J15: 107962 | K15: 15303
G16: 2017 | H16: 13015 | I16: 35 | J16: 121012 | K16: 8974
G17: 2018 | H17: 12922 | I17: No data | J17: 133934 | K17: 9896
G18: 2019 | H18: 12936 | I18: No data | J18: 146870 | K18: 7070
G19: 2020 | H19: 13225 | I19: No data | J19: 160095 | K19: 5627
G20: 2021 | H20: 15246 | I20: No data | J20: 175341 | K20: 5699
G21: 2022 | H21: 4306 | I21: No data | J21: 179647 | K21: 1594
B25: Indicator context:
B26: Information on the number of energy efficiency measures delivered in Welsh households under UK Government (UKG) energy efficiency schemes ECO and Green Deal. Energy Company Obligation (ECO) was introduced in 2013 to reduce energy consumption and support people at greater risk of living in fuel poverty. The larger energy companies are set obligations to install insulation and heating measures in order to achieve reductions in energy usage and heating costs. The Green Deal (GD) is a government initiative designed to help home owners install energy efficiency measures into their properties with the costs of these measures paid back through their energy bill over a period of time in the form of a GD finance plan.
B28: Notes:
B29: No data is available for Green Deal plans in Wales post-2017 as very few new plans have been delivered in recent years and the reporting system is no longer in place for these.
B30: This indicator relates to UKG administered energy efficiency schemes that cover the whole of the UK. In addition there are Welsh specific funding sources specifically for social housing energy efficiency improvement, however these are administered through local authorities rather than Welsh Government. Local authorities are allocated a specific amount based on the proportion of private homes in the local authority area so this information is not useful as an indicator.
B32: Trends:
B33: The annual number of ECO measures delivered and households in receipt of measures has fallen substantially since the beginning of the programme, plateauing at around 13,000 measures delivered per year between 2017 and 2020. The exact totals for 2020 are 13,225 measures delivered to 5,627 households. Reporting of Green Deal plans stopped in 2017 due to the low number of plans delivered
B35: Data source: | C35: BEIS Household Energy Efficiency National Statistics
B36: Release date: | C36: 2022-05-25
B37: External link: | C37: https://www.gov.uk/government/collections/household-energy-efficiency-national-statistics
B38: Notes:

Sheet B3.4
B2: B3.4 | C2: Indicator | E2: Tier | F2: Desired direction of travel [Note 1] | G2: CB1 progress or delivery [Note 1] | H2: Progress since 2020 | I2: Unit
C3: Support provided for building innovation schemes | E3: 3 | F3: N/A | G3: =H7 -> £118,092,847 | H3: =H8 -> No data | I3: £
H6: Total delivery | I6: Rating
G7: CB1 progress | H7: =SUM(J12:J15) -> £118,092,847 | I7: N/A
G8: Progress since 2020 | H8: No data | I8: N/A
G11: Year Announced | H11: Year | I11: Number of Homes | J11: Grant amount
G12: 2017-18 | H12: 2017 | I12: 228 | J12: £19,599,465
G13: 2018-19 | H13: 2018 | I13: 606 | J13: £40,426,000
G14: 2019-20 | H14: 2019 | I14: 571 | J14: £31,890,776
G15: 2020-21 | H15: 2020 | I15: 628 | J15: £26,176,606
B27: Indicator context:
B28: Information on the financial support provided to develop innovative approaches to construction and housing to drive energy efficiency improvements through the Innovative Housing Programme (IHP)
B30: Notes:
B31: CB1 progress includes 2017-2020 data
B32: Years reported are derived from calendar years
B34: Trends:
B35: Between 2017 and 2018, IHP funding increased substantially, reaching £40.4 million for 606 homes in 2018 (up from £19.6 million for 228 homes in 2017). In 2019, the IHP provided grant funding totalling £31.9 million for the development of 571 homes, a decrease on the previous year. The downward trend in funding continued in 2020 as almost £26.2 million was provided, however the number of homes developed (628) was the highest since the programme began in 2017. By any measure, all years are an improvement on the first year of the programme.
B37: Data source: | C37: Innovative Housing Programme (direct data request)
B38: Release date: | C38: N/A
B39: External link: | C39: N/A
B40: Notes:

Sheet B3.5
B2: B3.5 | C2: Indicator | E2: Tier | F2: Desired direction of travel [Note 1] | G2: CB1 progress or delivery [Note 1] | H2: Progress since 2020 | I2: Unit
C3: WGES investment in energy efficiency projects | E3: 3 | F3: N/A | G3: =H7 -> £51,352,640 | H3: =H8 -> £27,634,952 | I3: £
H6: Total delivery | I6: Rating
G7: CB1 progress | H7: =I15 -> £51,352,640 | I7: N/A
G8: Progress since 2020 | H8: =H16 -> £27,634,952 | I8: N/A
G12: Year | H12: WGES EE Investment (£) | I12: Cumulative total (£)
G13: 2018 | H13: 18,943,879 | I13: =H13 -> 18,943,879
G14: 2019 | H14: 14,668,138 | I14: =SUM(H13:H14) -> 33,612,017
G15: 2020 | H15: 17,740,623 | I15: =SUM(H13:H15) -> 51,352,640
G16: 2021 | H16: 27,634,952 | I16: =SUM(H13:H16) -> 78,987,592
B21: Indicator context:
B22: Welsh Government Energy Service (WGES) provides support for public bodies and communities developing energy efficiency or renewable energy schemes. The service also helps drive progress towards increased local ownership of renewable generation capacity. While the WGES facilitates investment, the government-provided funding is actually provided by the Wales Funding Programme. Data covering investment (and support) in renewable energy projects is covered in the power sector.
B24: Notes:
B25: Values given here differ from those given in the WGES annual report, as the report values are as of the financial close of year (rather than by year)
B26: CB1 progress includes 2018-2020 data
B28: Trends:
B29: WGES facilitated investment into energy efficiency projects decreased from almost £19m in 2018, to just under £14.7m in 2019, before increasing again to just over £17.7m in 2020. In 2021, this increased further to £27.6m. Over CB1 (from 2018-2020) a total of almost £51.4m in investment in EE projects was delivered.
B31: Data source: | C31: WGES Annual Report, plus personal communication with WGES team
B32: Release date: | C32: 2022-07-06
B33: External link: | C33: https://gov.wales/energy-service-annual-report-2021-2022
B34: Notes:

Sheet B3.6
B2: B3.6 | C2: Indicator | E2: Tier | F2: Desired direction of travel [Note 1] | G2: CB1 progress or delivery [Note 1] | H2: Progress since 2020 | I2: Unit
C3: Number of building energy efficiency projects supported through WGES | E3: 3 | F3: N/A | G3: =H7 -> 205 | H3: =H8 -> 62 | I3: Number of projects
H6: Total delivery | I6: Rating
G7: CB1 progress | H7: =I14 -> 205 | I7: N/A
G8: Progress since 2020 | H8: =H15 -> 62 | I8: N/A
G11: Year | H11: Number of projects | I11: Cumulative total
G12: 2018 | H12: 73 | I12: 73
G13: 2019 | H13: 70 | I13: 143
G14: 2020 | H14: 62 | I14: 205
G15: 2021 | H15: 62 | I15: 267
B22: Indicator context:
B23: This indicator tracks the number of energy efficiency projects supported through WGES.
B25: Notes:
B26: CB1 progress includes 2018-2020 data
B29: Trends:
B30: WGES provided support for 73 projects in 2018, 70 projects in 2019, and 62 projects in both 2020 and 2021. A total of 205 projects were delivered from 2018-2020.
B32: Data source: | C32: WGES Annual Report, plus personal communication with WGES team
B33: Release date: | C33: 2022-07-06
B34: External link: | C34: https://gov.wales/energy-service-annual-report-2021-2022
B35: Notes:

Sheet B3.7
B2: B3.7 | C2: Indicator | E2: Tier | F2: Desired direction of travel [Note 1] | G2: CB1 progress or delivery [Note 1] | H2: Progress since 2020 | I2: Unit
C3: Business Wales: Number of businesses supported to adopt or improve environmental sustainability strategies | E3: 3 | F3: N/A | G3: =H7 -> 2,479 | H3: =H8 -> No data | I3: Number of businesses
H6: Total delivery | I6: Rating
G7: CB1 progress | H7: =H16 -> 2,479 | I7: N/A
G8: Progress since 2020 | H8: No data | I8: N/A
G11: Year | H11: Number of businesses (cumulative) | I11: Number of businesses (per year)
G12: 2016 | H12: 5 | I12: 5
G13: 2017 | H13: 296 | I13: =H13-H12 -> 291
G14: 2018 | H14: 1,017 | I14: =H14-H13 -> 721
G15: 2019 | H15: 1,859 | I15: 842
G16: 2020 | H16: 2,479 | I16: 620
B19: Indicator context:
B20: Business Wales is seeking to drive behaviour change through its advice and support services and encourage businesses to adopt and improve environmental sustainability strategies to improve energy management of buildings.
B22: Notes:
B23: Years reported are derived from calendar years
B26: Trends:
B27: The total number of businesses supported to adopt or improve environmental sustainability strategies has been increasing steadily since 2016 as the reach of Business Wales has increased. In 2018, 721 businesses were supported and 842 the following year, however this reduced slightly in 2020 to 620. A total of 2,479 businesses were supported from 2016-2020.
B29: Data source: | C29: Business Wales - Support for adoption of environmental sustainability strategies
B30: Release date: | C30: N/A
B31: External link: | C31: N/A
B32: Notes:

Sheet B3.8
B2: B3.8 | C2: Indicator | E2: Tier | F2: Desired direction of travel [Note 1] | G2: CB1 progress or delivery [Note 1] | H2: Progress since 2020 | I2: Unit
C3: Support provided through UKG Renewable Heat Incentive Scheme | E3: 3 | F3: N/A | G3: 2,597 domestic & 613 non-domestic installations | H3: 1,091 domestic & 95 non-domestic installations | I3: Number of installations
H6: Total delivery | I6: Rating
G7: CB1 progress | H7: =CONCATENATE(H19," domestic & ",H29," non-domestic installations") -> 2597 domestic & 613 non-domestic installations | I7: N/A
G8: Progress since 2020 | H8: =CONCATENATE(I17," domestic & ",I27," non-domestic installations") -> 1091 domestic & 95 non-domestic installations | I8: N/A
G10: Year | H10: Cumulative total installations (by end of year) | I10: Installed this year
G11: 2015 | H11: 3,195 | I11: 1810
G12: 2016 | H12: 3,706 | I12: 511
G13: 2017 | H13: 4,230 | I13: 524
G14: 2018 | H14: 4,665 | I14: 435
G15: 2019 | H15: 5,271 | I15: 606
G16: 2020 | H16: 5,792 | I16: 521
G17: 2021 | H17: 6,883 | I17: 1091
G19: Domestic CB1 Total | H19: =SUM(I12:I16) -> 2,597
G21: Year | H21: Cumulative total installations (by end of year) | I21: Installed this year
G22: 2016 | H22: 1,565 | I22: 234
G23: 2017 | H23: 1,796 | I23: 231
G24: 2018 | H24: 1,913 | I24: 118
G25: 2019 | H25: 1,889 | I25: -24
G26: 2020 | H26: 1,943 | I26: 54
G27: 2021 | H27: 2,038 | I27: 95
G29: Non-domestic CB1 Total | H29: =SUM(I22:I26) -> 613
B32: Indicator context:
B33: The Renewable Heat Incentive (RHI) scheme is a government financial incentive to promote the use of renewable heat. There are two schemes - domestic and non-domestic. - The domestic scheme provides incentives for installation of biomass boilers, solar water heating and certain heat pumps for home owners and private landlords. - The non-domestic scheme provides incentives for installations for biomass, ground, air and water source heat pumps, deep geothermal, solar thermal collectors, biomethane & biogas, and CHP systems. This indicator tracks the number of installations under the domestic and non-domestic renewable heat incentive schemes
B35: Notes:
B36: For some years in the timeseries, the number of installations is negative. This is due to the closure of some installations.
B39: Trends:
B40: In 2021, 1,186 domestic and non-domestic installations were accredited, compared to 575 the previous year, and 582 in 2019. This was in large part due to significantly more domestic air source heat pumps being accredited than in 2020. The cumulative total has shown clear improvement in every year of the scheme, though annual installations fluctuate. A total of 2,597 domestic and 613 non-domestic installations were accredited between 2016 and 2020.
B42: Data source: | C42: Ofgem RHI Statistics (Quarterly Reports) and BEIS Renewable Heat Incentive statistics
B43: Release date:
B44: External link: | C44: See notes below
B45: Notes: | C45: Ofgem Domestic RHI Total number of accredited installations https://www.ofgem.gov.uk/environmental-and-social-schemes/domestic-renewable-heat-incentive-domestic-rhi/contacts-guidance-and-resources
C46: BEIS Renewable Heat Incentive statistics https://www.gov.uk/government/collections/renewable-heat-incentive-statistics

Sheet B3.9
B2: B3.9 | C2: Indicator | E2: Tier | F2: Desired direction of travel [Note 1] | G2: CB1 progress or delivery [Note 1] | H2: Progress since 2020 | I2: Unit
C3: Uptake of Smart Flexible and Digitalised Systems to reduce home heat demand | E3: 3 | F3: N/A | G3: =H7 -> 34 | H3: =H8 -> No data | I3: Number of projects
H6: Total delivery | I6: Rating
G7: CB1 progress | H7: =H16 -> 34 | I7: N/A
G8: Progress since 2020 | H8: No data | I8: N/A
G11: Year | H11: Total | I11: New projects
G12: 2016 | H12: 8 | I12: 8
G13: 2017 | H13: 14 | I13: 6
G14: 2018 | H14: 20 | I14: 6
G15: 2019 | H15: 28 | I15: 8
G16: 2020 | H16: 34 | I16: 6
B21: Indicator context:
B22: Indicator to track the number of demonstrator projects and technological development under the Smart Living Programme, aimed at developing systems to reduce heat demand at a household level and aid the transition to decarbonised heat.
B24: Notes:
B28: Trends:
B29: Smart Living has supported a total of 34 projects over the period 2016 to 2020. The program has been consistent, supporting between 6 and 8 projects per year.
B31: Data source: | C31: Smart Living - direct data request
B32: Release date: | C32: N/A
B33: External link: | C33: N/A
B34: Notes:

Sheet B3.10
B2: B3.10 | C2: Indicator | E2: Tier | F2: Desired direction of travel | G2: CB1 progress or delivery [Note 1] | H2: Progress since 2020 | I2: Unit
C3: Number of social homes compliant with WHQS | E3: 3 | F3: Increase | G3: =I7 -> 3 | H3: =I8 -> 0 | I3: Number of homes compliant
H6: % change | I6: Rating
G7: CB1 progress | H7: =(H20-H16)/H16 -> 28% | I7: =IF(H7="No data",0,IF(H7>0.05,3,IF(H7<-0.05,1,2))) -> 3
G8: Progress since 2020 | H8: No data | I8: =IF(H8="No data",0,IF(H8>0.05,3,IF(H8<-0.05,1,2))) -> 0
G11: Year | H11: Fully compliant stock at 31st March | I11: Compliant stock subject to acceptable fails at 31st March | J11: Non-compliant stock | K11: Total stock | L11: Fully compliant stock at 31st March (%) | M11: Non-compliant stock (%)
G12: 2012 | H12: 72,329 | I12: 19,825 | J12: 129,761 | K12: =SUM(H12:J12) -> 221,915 | L12: =H12/$K12 -> 33% | M12: =J12/$K12 -> 58%
G13: 2013 | H13: 99,978 | I13: 33,808 | J13: 87,984 | K13: =SUM(H13:J13) -> 221,770 | L13: =H13/$K13 -> 45% | M13: 40%
G14: 2014 | H14: 110,620 | I14: 39,135 | J14: 72,494 | K14: 222,249 | L14: 50% | M14: 33%
G15: 2015 | H15: 122,404 | I15: 36,913 | J15: 63,331 | K15: 222,648 | L15: 55% | M15: 28%
G16: 2016 | H16: 135,651 | I16: 41,552 | J16: 45,759 | K16: 222,962 | L16: 61% | M16: 21%
G17: 2017 | H17: 136,286 | I17: 56,087 | J17: 32,011 | K17: 224,384 | L17: 61% | M17: 14%
G18: 2018 | H18: 142,648 | I18: 61,321 | J18: 21,794 | K18: 225,763 | L18: 63% | M18: 10%
G19: 2019 | H19: 155,938 | I19: 55,555 | J19: 15,590 | K19: 227,083 | L19: 69% | M19: 7%
G20: 2020 | H20: 173,677 | I20: 54,833 | J20: 2,697 | K20: 231,207 | L20: 75% | M20: 1%
B23: Indicator context:
B24: Indicator of the number of social homes with meet the Welsh Housing Quality Standard (WHQS), components of which are measures of energy efficiency rating and SAP.
B26: Notes:
B27: The WHQS data presents summary information on self contained stock held by local authorities and Registered Social Landlords (RSLs) as at 31 March each year, for example stock for 2011-12 shows stock at 31 March 2012. For 2019/20, the data was collected as at 31st December 2020
B28: Information shown for RSLs is based on responses received from 57 RSLs in 2011-12, 58 in 2012-13, 59 in 2013-14, 58 in 2014-15, 60 in 2015-16, 59 in 2016-17 and 58 in 2017-18. Information was not received from 4 RSLs in 2012-13, 2 RSLs in 2013-14, 3 RSLs in 2014-15, 2 RSLs in 2015-16, 1 RSL in 2016-17 and in 2017-18. The RSL stock numbers have been adjusted accordingly.
B30: Trends:
B31: The proportion of social housing stock fully compliant with WHQS has steadily increased over time, reaching 75% by the end of 2020 (up from 61% in 2016). At this point, just 1% of social housing stock was not compliant, a substantial decrease from 21% in 2016.
B33: Data source: | C33: StatsWales - Compliance with the overall Welsh Housing Quality Standard
B34: Release date: | C34: 2021-09-29
B35: External link: | C35: https://statswales.gov.wales/Catalogue/Housing/Social-Housing-Quality/compliancewiththeoverallwelshhousingqualitystandard-by-provider-measure
B36: Notes:

Sheet B3.11
B2: B3.11 | C2: Indicator | E2: Tier | F2: Desired direction of travel | G2: CB1 progress or delivery [Note 1] | H2: Progress since 2020 | I2: Unit
C3: Proportion of dwellings with adequate energy performance (SAP>65) | E3: 3 | F3: Increase | G3: =I7 -> 3 | H3: =I8 -> 0 | I3: % fully compliant
H6: % change | I6: Rating
G7: CB1 progress | H7: =(H20-H16)/H16 -> 11% | I7: =IF(H7="No data",0,IF(H7>0.05,3,IF(H7<-0.05,1,2))) -> 3
G8: Progress since 2020 | H8: No data | I8: =IF(H8="No data",0,IF(H8>0.05,3,IF(H8<-0.05,1,2))) -> 0
G11: Year | H11: Fully compliant stock at 31st March | I11: Compliant stock subject to acceptable fails at 31st March | J11: Non-compliant stock | K11: Total stock | L11: Fully compliant stock (%)
G12: 2012 | H12: 159,605 | I12: 6,160 | J12: 56,150 | K12: =SUM(H12:J12) -> 221,915 | L12: =H12/K12 -> 72%
G13: =G12+1 -> 2013 | H13: 163,917 | I13: 8,539 | J13: 49,314 | K13: =SUM(H13:J13) -> 221,770 | L13: =H13/K13 -> 74%
G14: =G13+1 -> 2014 | H14: 178,266 | I14: 11,933 | J14: 32,050 | K14: 222,249 | L14: 80%
G15: 2015 | H15: 177,430 | I15: 11,608 | J15: 33,610 | K15: 222,648 | L15: 80%
G16: 2016 | H16: 193,829 | I16: 13,463 | J16: 15,670 | K16: 222,962 | L16: 87%
G17: 2017 | H17: 197,354 | I17: 17,356 | J17: 9,674 | K17: 224,384 | L17: 88%
G18: 2018 | H18: 200,426 | I18: 18,708 | J18: 6,629 | K18: 225,763 | L18: 89%
G19: 2019 | H19: 204,497 | I19: 18,666 | J19: 3,920 | K19: 227,083 | L19: 90%
G20: 2020 | H20: 214,478 | I20: 15,237 | J20: 1,492 | K20: 231,207 | L20: 93%
B23: Indicator context:
B24: This indicator details the proportion of local authority and registered social landlord (RSL) owned dwellings with adequate energy performance, defined as an SAP rating of 65 or greater.
B26: Notes:
B27: The WHQS data presents summary information on self contained stock held by local authorities and Registered Social Landlords (RSLs) as at 31 March each year, for example stock for 2011-12 shows stock at 31 March 2012. For 2019/20, the data was collected as at 31st December 2020
B28: Information shown for RSLs is based on responses received from 57 RSLs in 2011-12, 58 in 2012-13, 59 in 2013-14, 58 in 2014-15, 60 in 2015-16, 59 in 2016-17 and 58 in 2017-18. Information was not received from 4 RSLs in 2012-13, 2 RSLs in 2013-14, 3 RSLs in 2014-15, 2 RSLs in 2015-16, 1 RSL in 2016-17 and in 2017-18. The RSL stock numbers have been adjusted accordingly.
B30: Trends:
B31: The proportion of local authority and RSL-owned housing stock with an SAP rating exceeding 65 has seen consistent increases over time, from 72% in 2012, to 87% in 2016, to 93% by the end of 2020.
B33: Data source: | C33: StatsWales - Compliance with WHQS components by provider and measure
B34: Release date: | C34: 2021-09-29
B35: External link: | C35: https://statswales.gov.wales/Catalogue/Housing/Social-Housing-Quality/compliancewithwelshhousingqualitystandardcomponents-by-provider-measure
B36: Notes:

Sheet B3.12
B2: B3.12 | C2: Indicator | E2: Tier | F2: Desired direction of travel | G2: CB1 progress or delivery [Note 1] | H2: Progress since 2020 | I2: Unit
C3: Proportion of BREEAM Certifications rated 'Excellent' or 'Outstanding' | E3: 3 | F3: Increase | G3: =I7 -> 3 | H3: =I8 -> 0 | I3: % rated "Excellent" or "Outstanding"
H6: % change | I6: Rating
G7: CB1 progress | H7: =(N22-N19)/N19 -> 17% | I7: =IF(H7="No data",0,IF(H7>0.05,3,IF(H7<-0.05,1,2))) -> 3
G8: Progress since 2020 | H8: No data | I8: =IF(H8="No data",0,IF(H8>0.05,3,IF(H8<-0.05,1,2))) -> 0
G10: Year | H10: Total | I10: Pass | J10: Good | K10: Very Good | L10: Excellent | M10: Outstanding | N10: % of total rated "Excellent" or "Outstanding"
G11: 2008 | H11: 91 | I11: 1 | J11: 40 | K11: 29 | L11: 21 | M11: 0 | N11: =(M11+L11)/H11 -> 23%
G12: 2009 | H12: 121 | I12: 1 | J12: 54 | K12: 34 | L12: 31 | M12: 1 | N12: =(M12+L12)/H12 -> 26%
G13: 2010 | H13: 70 | I13: 1 | J13: 16 | K13: 20 | L13: 33 | M13: 0 | N13: 47%
G14: 2011 | H14: 94 | I14: 3 | J14: 20 | K14: 35 | L14: 36 | M14: 0 | N14: 38%
G15: 2012 | H15: 105 | I15: 0 | J15: 7 | K15: 51 | L15: 43 | M15: 4 | N15: 45%
G16: 2013 | H16: 113 | I16: 0 | J16: 1 | K16: 49 | L16: 62 | M16: 1 | N16: 56%
G17: 2014 | H17: 105 | I17: 2 | J17: 3 | K17: 57 | L17: 41 | M17: 2 | N17: 41%
G18: 2015 | H18: 99 | I18: 0 | J18: 3 | K18: 53 | L18: 42 | M18: 1 | N18: 43%
G19: 2016 | H19: 119 | I19: 0 | J19: 3 | K19: 57 | L19: 56 | M19: 3 | N19: 50%
G20: 2017 | H20: 89 | I20: 0 | J20: 3 | K20: 20 | L20: 64 | M20: 2 | N20: 74%
G21: 2018 | H21: 63 | I21: 0 | J21: 1 | K21: 28 | L21: 34 | M21: 0 | N21: 54%
G22: 2019 | H22: 67 | I22: 0 | J22: 5 | K22: 23 | L22: 38 | M22: 1 | N22: 58%
B25: Indicator context:
B26: BREEAM assessments measure performance across a broad range of categories from energy to ecology to evaluate a building’s specification, design, construction and use. This indicator evaluates the proportion of certifications that are rated ‘excellent’ or ‘outstanding’, indicating typically 8-11% higher energy performance than current building regulations. This indicator tracks possible outcomes from policy 41, which is aimed at funding more efficient buildings through the sustainable buildings funding policy.
B28: Notes:
B29: CB1 progress includes 2016-2019 data
B32: Trends:
B33: Overall, the proportion of BREEAM certifications rated outstanding or excellent has increased over the period, although there has been some fluctuation, peaking at 74% in 2017. In the latest year for which we have data (2019), the proportion was 58%.
B35: Data source: | C35: BREEAM Certifications in Wales by rating and year
B36: Release date: | C36: 2020-02-01
B37: External link: | C37: https://www.greenbooklive.com/search/scheme.jsp?id=202
B38: Notes:

Sheet B3.13
B2: B3.13 | C2: Indicator | E2: Tier | F2: Desired direction of travel | G2: CB1 progress or delivery [Note 1] | H2: Progress since 2020 | I2: Unit
C3: Smart meter roll-out | E3: 3 | F3: Increase | G3: No data | H3: No data | I3: TBD
B28: Indicator context:
B29: Indicator to track the uptake of Smart Meters, which help users monitor their energy consumption.
B31: Notes:
B32: Indicator under development. WG are working to make the data available for this indicator where possible.
B35: Trends:
B36: The National Survey for Wales in 2017-18 indicated that 23% of households had an electric smart meter present, whilst 77% did not. No other data on smart meter installations is currently available in Wales.
B38: Data source: | C38: National Survey for Wales, 2017-18
B39: Release date: | C39: 2018-08-20
B40: External link: | C40: https://gov.wales/national-survey-wales
B41: Notes:

Sheet B2.1
B2: B2.1 | C2: Indicator | E2: Tier | F2: Desired direction of travel | G2: CB1 progress | H2: Progress since 2020 | I2: Unit
C3: Total Buildings sector energy demand | E3: 2 | F3: Decrease | G3: =I7 -> 2 | H3: =I8 -> 0 | I3: kilotonnes of oil equivalent (ktoe)
H6: % change | I6: Rating
G7: CB1 progress | H7: =(N23-N19)/N19 -> -0.4% | I7: =IF(H7="No data",0,IF(H7<-0.05,3,IF(H7>0.05,3,2))) -> 2
G8: Progress since 2020 | H8: No data | I8: =IF(H8="No data",0,IF(H8<-0.05,3,IF(H8>0.05,3,2))) -> 0
G11: Year | H11: Subnational total final energy consumption, Wales (ktoe) | J11: Buildings proportion of energy consumption, UK (space heating and cooking) | L11: Wales Buildings Sector Energy Consumption (ktoe)
H12: All fuels: Domestic | I12: All fuels: Industrial, Commercial and other | J12: Domestic | K12: Industrial, Commercial and other | L12: Domestic | M12: Industrial, Commercial and other | N12: Total (ktoe)
G13: 2010 | H13: 2,300 | I13: 4,274 | J13: 72% | K13: 43% | L13: =H13*J13 -> 1,663 | M13: =I13*K13 -> 1,847 | N13: =SUM(L13:M13) -> 3,509
G14: 2011 | H14: 2,118 | I14: 4,226 | J14: 66% | K14: 43% | L14: 1,391 | M14: 1,817 | N14: =SUM(L14:M14) -> 3,207
G15: 2012 | H15: 2,118 | I15: 3,909 | J15: 67% | K15: 43% | L15: 1,412 | M15: 1,691 | N15: 3,103
G16: 2013 | H16: 2,097 | I16: 4,212 | J16: 66% | K16: 45% | L16: 1,389 | M16: 1,888 | N16: 3,277
G17: 2014 | H17: 2,041 | I17: 3,894 | J17: 65% | K17: 44% | L17: 1,320 | M17: 1,703 | N17: =SUM(L17:M17) -> 3,023
G18: 2015 | H18: 2,009 | I18: 3,861 | J18: 66% | K18: 32% | L18: 1,323 | M18: 1,239 | N18: 2,562
G19: 2016 | H19: 2,017 | I19: 3,675 | J19: 66% | K19: 33% | L19: 1,339 | M19: 1,228 | N19: 2,567
G20: 2017 | H20: 2,050 | I20: 3,764 | J20: 65% | K20: 34% | L20: 1,340 | M20: 1,278 | N20: 2,618
G21: 2018 | H21: 2,051 | I21: 3,757 | J21: 65% | K21: 32% | L21: 1,341 | M21: 1,218 | N21: 2,559
G22: 2019 | H22: 2,064 | I22: 3,701 | J22: 65% | K22: 33% | L22: 1,345 | M22: 1,218 | N22: 2,563
G23: 2020 | H23: 2,115 | I23: 3,532 | J23: 65% | K23: 33% | L23: 1,374 | M23: 1,181 | N23: =SUM(L23:M23) -> 2,555
B26: Indicator context:
B27: Indicator of the total energy demand of domestic and non-domestic (including public, industrial/commercial buildings, and agricultural) buildings, used as a proxy for the effectiveness of energy efficiency and behaviour change measures implemented.
B29: Notes:
B30: Building sector energy consumption as a proportion of the total has been calculated from UK energy consumption statistics. This proportion has been applied to Wales subnational energy consumption to estimate the buildings sector energy demand in Wales. ECUK end-use data is used to apportion the amount of domestic and industrial/commercial/other fuel use (from BEIS subnational energy consumption statistics) attributed to buildings.
B32: Trends:
B33: Buildings sector energy consumption trended downwards between 2010 and 2015 but has changed little since. The most recent data available estimates buildings consumed 2,555 kilotonnes of oil equivalent (ktoe) in 2020, compared to 2,567 ktoe in 2016 (equating to a 0.4% decrease over the CB1 period).
B35: Data source: | C35: BEIS Subnational Total Final Energy Consumption and UK Energy Consumption by End Use (ECUK)
B36: Release date: | C36: 2021-09-01
B37: External link: | C37: See notes below
B38: Notes: | C38: BEIS Subnational Total Final Energy Consumption: https://www.gov.uk/government/statistics/total-final-energy-consumption-at-regional-and-local-authority-level-2005-to-2020
C39: UK Energy Consumption by End Use (ECUK): https://www.gov.uk/government/statistics/energy-consumption-in-the-uk-2021

Sheet B2.2
B2: B2.2 | C2: Indicator | E2: Tier | F2: Desired direction of travel | G2: CB1 progress | H2: Progress since 2020 | I2: Unit
C3: Average household electricity consumption | E3: 2 | F3: Decrease | G3: =I7 -> 2 | H3: =I8 -> 0 | I3: kWh sales per meter
H6: % change | I6: Rating
G7: CB1 progress | H7: =(H25-H21)/H21 -> -1% | I7: =IF(H7="No data",0,IF(H7<-0.05,3,IF(H7>0.05,3,2))) -> 2
G8: Progress since 2020 | H8: No data | I8: =IF(H8="No data",0,IF(H8<-0.05,3,IF(H8>0.05,3,2))) -> 0
G11: Year | H11: Mean domestic consumption (kWh per household)
G12: 2007 | H12: 4,209
G13: 2008 | H13: 4,094
G14: 2009 | H14: 4,069
G15: 2010 | H15: 4,139
G16: 2011 | H16: 4,055
G17: 2012 | H17: 3,987
G18: 2013 | H18: 3,928
G19: 2014 | H19: 3,912
G20: 2015 | H20: 3,845
G21: 2016 | H21: 3,749
G22: 2017 | H22: 3,692
G23: 2018 | H23: 3,588
G24: 2019 | H24: 3,548
G25: 2020 | H25: 3,705
B28: Indicator context:
B29: This indicator tracks total household electricity use and changes to this over time.
B31: Notes:
B35: Trends:
B36: There has been an overall decrease in average household electricity consumption over time despite some small fluctuations. 2019 is the lowest year in the timeseries, with an average domestic consumption of 3,548kWh per household per year. The trend reversed in 2020, with consumption rising to 3,705 kWh per household, however data is currently unavailable to understand if this continued the following year.
B38: Data source: | C38: BEIS Sub-national Domestic Electricity Consumption Statistics
B39: Release date: | C39: 2021-12-23
B40: External link: | C40: https://www.gov.uk/government/collections/sub-national-electricity-consumption-data
B41: Notes:

Sheet B2.3
B2: B2.3 | C2: Indicator | E2: Tier | F2: Desired direction of travel | G2: CB1 progress | H2: Progress since 2020 | I2: Unit
C3: Average household gas consumption | E3: 2 | F3: Decrease | G3: =I7 -> 2 | H3: =I8 -> 0 | I3: kWh sales per meter
H6: % change | I6: Rating
G7: CB1 progress | H7: =(H25-H21)/H21 -> 3.8% | I7: =IF(H7="No data",0,IF(H7<-0.05,1,IF(H7>0.05,3,2))) -> 2
G8: Progress since 2020 | H8: No data | I8: =IF(H8="No data",0,IF(H8<-0.05,1,IF(H8>0.05,3,2))) -> 0
G11: Year | H11: Mean domestic consumption (kWh per household)
G12: 2007 | H12: 17,550
G13: 2008 | H13: 16,905
G14: 2009 | H14: 15,187
G15: 2010 | H15: 14,674
G16: 2011 | H16: 13,590
G17: 2012 | H17: 13,484
G18: 2013 | H18: 13,029
G19: 2014 | H19: 12,774
G20: 2015 | H20: 12,457
G21: 2016 | H21: 12,397
G22: 2017 | H22: 12,755
G23: 2018 | H23: 12,574
G24: 2019 | H24: 12,750
G25: 2020 | H25: 12,872
B28: Indicator context:
B29: Information on average household gas consumption and changes to this over time.
B31: Notes:
B32: The data refers to kWh gas sold per meter- it is inferred that there is one gas meter per household.
B35: Trends:
B36: There has been an overall decrease in average domestic gas consumption since the early 2000s, but small increases over CB1 (2016-2020). 2016 is the lowest year in the timeseries at an average consumption of 12,397kWh per gas meter per year. Domestic consumption has risen consistently since then with 2020 being 3.8% higher than 2016, reaching 12,872kWh per gas meter.
B38: Data source: | C38: BEIS Sub-national Domestic Gas Consumption Statistics
B39: Release date: | C39: 2021-12-23
B40: External link: | C40: https://www.gov.uk/government/collections/sub-national-gas-consumption-data
B41: Notes:

Sheet B2.4
B2: B2.4 | C2: Indicator | E2: Tier | F2: Desired direction of travel | G2: CB1 progress | H2: Progress since 2020 | I2: Unit
C3: Installed capacity of good quality CHP schemes | E3: 2 | F3: Increase | G3: =I7 -> 1 | H3: =I8 -> 0 | I3: MWe
H6: % change | I6: Rating
G7: CB1 progress | H7: =(H19-H15)/H15 -> -16% | I7: =IF(H7="No data",0,IF(H7>0.05,3,IF(H7<-0.05,1,2))) -> 1
G8: Progress since 2020 | H8: No data | I8: =IF(H8="No data",0,IF(H8>0.05,3,IF(H8<-0.05,1,2))) -> 0
G11: Year | H11: Electrical Capacity (MWe)
G12: 2013 | H12: 214
G13: 2014 | H13: 208
G14: 2015 | H14: 184
G15: 2016 | H15: 220
G16: 2017 | H16: 236
G17: 2018 | H17: 230
G18: 2019 | H18: 184
G19: 2020 | H19: 185
B22: Indicator context:
B23: This indicators tracks progress in the uptake of CHP schemes. Combined Heat and Power (CHP) is the simultaneous generation of electricity and heat resulting in improved efficiencies when compared to meeting electricity and heat demands separately. Electrical capacity shown here is the CHP Qualifying Power Capacity (QPC). CHP Qualifying Power Capacity is the registered power generation capacity of a CHP Scheme (MWe) that qualifies as Good Quality CHP, according to a CHPQA assessment.
B25: Notes:
B26: Combined Heat and Power (CHP) is the simultaneous generation of electricity and heat resulting in improved efficiencies when compared to meeting electricity and heat demands separately
B29: Trends:
B30: The electrical capacity of good quality CHP systems in Wales peaked in 2017 and has generally fallen since (with a very minor increase seen between 2019 and 2020). A 16% decrease in this indicator was seen over CB1 (between 2016 and 2020).
B32: Data source: | C32: BEIS (DUKES) Energy Trends – Regional Dataset
B33: Release date: | C33: 2021-09-30
B34: External link: | C34: https://www.gov.uk/government/collections/combined-heat-and-power-statistics
B35: Notes:

Sheet B1.1
B2: B1.1 | C2: Indicator | E2: Tier | F2: Desired direction of travel | G2: CB1 progress | H2: Anticipated contribution to CCC’s 2020 pathway | I2: 2020 progress [Note 3] | J2: Unit
C3: Buildings Sector GHG emissions | E3: 1 | F3: Decrease | G3: =J7 -> 2.00 | H3: 2020 emissions should be 30% lower than the base year | I3: =J8 -> ü | J3: ktCO2e
I6: % change | J6: Rating
H7: CB1 progress | I7: =(I37-I33)/I33 -> 0.1% | J7: =IF(I7="No data",0,IF(I7>0.05,1,IF(I7<-0.05,3,2))) -> 2
H8: 2020 progress [Note 3] | I8: =J37 -> -29.8% | J8: ü
H11: Year | I11: Buildings Sector Total (ktCO₂e) | J11: % change from base year | K11: % change from previous year | L11: Linear trajectory (from base year to anticipated 2020 CCC pathway contribution)
H12: BaseYear | I12: 6,251
H13: 1990 | I13: 6,251 | J13: =(I13-$I$12)/$I$12 -> 0.0% | L13: =I12 -> 6,251
H14: 1995 | I14: 6,395 | J14: 2.3% | K14: =(I14-I13)/I13 -> 2.3% | L14: =L13-(($L$13-$L$37)/24) -> 6,173
H15: 1998 | I15: 6,474 | J15: 3.6% | K15: 1.2% | L15: 6,096
H16: 1999 | I16: 6,449 | J16: 3.2% | K16: -0.4% | L16: 6,019
H17: 2000 | I17: 6,270 | J17: 0.3% | K17: -2.8% | L17: 5,941
H18: 2001 | I18: 6,340 | J18: 1.4% | K18: 1.1% | L18: 5,864
H19: 2002 | I19: 5,822 | J19: -6.9% | K19: -8.2% | L19: 5,787
H20: 2003 | I20: 5,856 | J20: -6.3% | K20: 0.6% | L20: 5,709
H21: 2004 | I21: 6,033 | J21: -3.5% | K21: 3.0% | L21: 5,632
H22: 2005 | I22: 5,644 | J22: -9.7% | K22: -6.5% | L22: 5,554
H23: 2006 | I23: 5,450 | J23: -12.8% | K23: -3.4% | L23: 5,477
H24: 2007 | I24: 5,151 | J24: -17.6% | K24: -5.5% | L24: 5,400
H25: 2008 | I25: 5,416 | J25: -13.3% | K25: 5.2% | L25: 5,322
H26: 2009 | I26: 5,084 | J26: -18.7% | K26: -6.1% | L26: 5,245
H27: 2010 | I27: 5,607 | J27: -10.3% | K27: 10.3% | L27: 5,168
H28: 2011 | I28: 4,531 | J28: -27.5% | K28: -19.2% | L28: 5,090
H29: 2012 | I29: 4,974 | J29: -20.4% | K29: 9.8% | L29: 5,013
H30: 2013 | I30: 4,990 | J30: -20.2% | K30: 0.3% | L30: 4,936
H31: 2014 | I31: 4,203 | J31: -32.8% | K31: -15.8% | L31: 4,858
H32: 2015 | I32: 4,288 | J32: -31.4% | K32: 2.0% | L32: 4,781
H33: 2016 | I33: 4,385 | J33: -29.9% | K33: 2.3% | L33: 4,704
H34: 2017 | I34: 4,373 | J34: -30.0% | K34: -0.3% | L34: 4,626
H35: 2018 | I35: 4,455 | J35: -28.7% | K35: 1.9% | L35: 4,549
H36: 2019 | I36: 4,308 | J36: -31.1% | K36: -3.3% | L36: 4,472
H37: 2020 | I37: 4,388 | J37: -29.8% | K37: 1.8% | L37: =C67 -> 4,394
B40: Indicator context:
B41: Indicator detailing the total GHG emissions for the buildings sector, as defined in Prosperity for All; A Low Carbon Wales.
B43: Notes:
B47: Trends:
B48: The buildings sector made up 13.2% of total Welsh emissions in 2020. Emissions from the buildings sector have decreased over time, with some fluctuations. In 2020, the buildings sector emitted a total of 4388 ktCO2e. This is 1.8% more than the emissions for the previous year. Base year emissions for the buildings sector totalled 6251 ktCO2e, and buildings sector emissions are now (2020) 29.8% lower than the base year. The Buildings sector has emitted a total of 21.91 MtCO2e during the first carbon budget period.
B50: Data source: | C50: NAEI GHG 2020 (Wales)
B51: Release date: | C51: 2022-07-06
B52: External link: | C52: https://naei.beis.gov.uk/reports/reports?section_id=3
B53: Notes:
B60: Hide data from here down
B62: Data for Anticipated CCC Pathway Contribution (based on 2016 GHGi)
B64: Based on 2016 GHGI Submission
B65: Year | C65: Buildings Total (ktCO2e)
B66: BaseYear | C66: 6,278
B67: Anticipated 2020 CCC pathway contribution | C67: =C66*0.7 -> 4394.33

Sheet B1.2
B2: B1.2 | C2: Indicator | E2: Tier | F2: Desired direction of travel | G2: CB1 progress | H2: Unit
C3: Emissions from residential buildings | E3: 1 | F3: Decrease | G3: =K7 -> 2.00 | H3: ktCO2e
J6: % change | K6: Rating
I7: CB1 progress | J7: =(J36-J32)/J32 -> -1% | K7: =IF(J7="No data",0,IF(J7>0.05,1,IF(J7<-0.05,3,2))) -> 2
I10: Year | J10: Residential GHG Emissions (ktCO₂e) | K10: % change from base year | L10: % change from previous year
I11: BaseYear | J11: 4,944
I12: 1990 | J12: 4,944 | K12: =(J12-$J$11)/$J$11 -> 0%
I13: 1995 | J13: 5,101 | K13: 3.2% | L13: =(J13-J12)/J12 -> 3.2%
I14: 1998 | J14: 5,435 | K14: 9.9% | L14: 6.6%
I15: 1999 | J15: 5,364 | K15: 8.5% | L15: -1.3%
I16: 2000 | J16: 5,168 | K16: 4.5% | L16: -3.7%
I17: 2001 | J17: 5,262 | K17: 6.4% | L17: 1.8%
I18: 2002 | J18: 4,920 | K18: -0.5% | L18: -6.5%
I19: 2003 | J19: 4,915 | K19: -0.6% | L19: -0.1%
I20: 2004 | J20: 5,005 | K20: 1.2% | L20: 1.8%
I21: 2005 | J21: 4,660 | K21: -5.8% | L21: -6.9%
I22: 2006 | J22: 4,566 | K22: -7.7% | L22: -2.0%
I23: 2007 | J23: 4,321 | K23: -12.6% | L23: -5.4%
I24: 2008 | J24: 4,463 | K24: -9.7% | L24: 3.3%
I25: 2009 | J25: 4,265 | K25: -13.7% | L25: -4.4%
I26: 2010 | J26: 4,729 | K26: -4.4% | L26: 10.9%
I27: 2011 | J27: 3,786 | K27: -23.4% | L27: -20.0%
I28: 2012 | J28: 4,089 | K28: -17.3% | L28: 8.0%
I29: 2013 | J29: 4,125 | K29: -16.6% | L29: 0.9%
I30: 2014 | J30: 3,487 | K30: -29.5% | L30: -15.5%
I31: 2015 | J31: 3,555 | K31: -28.1% | L31: 2.0%
I32: 2016 | J32: 3,603 | K32: -27.1% | L32: 1.3%
I33: 2017 | J33: 3,533 | K33: -28.5% | L33: -1.9%
I34: 2018 | J34: 3,638 | K34: -26.4% | L34: 2.9%
I35: 2019 | J35: 3,502 | K35: -29.2% | L35: -3.7%
I36: 2020 | J36: 3,566 | K36: -27.9% | L36: =(J36-J35)/J35 -> 1.8%
B39: Indicator context:
B40: Indicator to track GHG emissions from residential buildings.
B42: Notes:
B46: Trends:
B47: Emissions from residential buildings have decreased overall, and totalled 3,566 ktCO2e in 2020. Residential building emissions have decreased by 27.9% since the base year, and in 2020 had increased by 1.8% from the previous year. Over CB1 (2016-2020), a decrease of 1% was seen.
B49: Data source: | C49: NAEI GHG 2020 (Wales)
B50: Release date: | C50: 2022-07-06
B51: External link: | C51: https://naei.beis.gov.uk/reports/reports?section_id=3
B52: Notes:

Sheet B1.3
B2: B1.3 | C2: Indicator | E2: Tier | F2: Desired direction of travel | G2: CB1 progress | H2: Unit
C3: Emissions from business sector buildings | E3: 1 | F3: Decrease | G3: =K7 -> 1.00 | H3: ktCO2e
J6: % change | K6: Rating
I7: CB1 progress | J7: =(J35-J31)/J31 -> 15% | K7: =IF(J7="No data",0,IF(J7>0.05,1,IF(J7<-0.05,3,2))) -> 1
I9: Year | J9: Business Buildings GHG Emissions (ktCO₂e) | K9: % change from base year | L9: % change from previous year
I10: BaseYear | J10: 511
I11: 1990 | J11: 511 | K11: =(J11-$J$10)/$J$10 -> 0.0%
I12: 1995 | J12: 572 | K12: 12.1% | L12: =(J12-J11)/J11 -> 12.1%
I13: 1998 | J13: 454 | K13: -11.0% | L13: -20.6%
I14: 1999 | J14: 487 | K14: -4.7% | L14: 7.1%
I15: 2000 | J15: 527 | K15: 3.1% | L15: 8.2%
I16: 2001 | J16: 512 | K16: 0.2% | L16: -2.8%
I17: 2002 | J17: 435 | K17: -14.8% | L17: -15.0%
I18: 2003 | J18: 475 | K18: -7.1% | L18: 9.1%
I19: 2004 | J19: 507 | K19: -0.7% | L19: 6.8%
I20: 2005 | J20: 452 | K20: -11.5% | L20: -10.9%
I21: 2006 | J21: 410 | K21: -19.8% | L21: -9.4%
I22: 2007 | J22: 392 | K22: -23.2% | L22: -4.2%
I23: 2008 | J23: 496 | K23: -2.8% | L23: 26.5%
I24: 2009 | J24: 400 | K24: -21.7% | L24: -19.4%
I25: 2010 | J25: 431 | K25: -15.7% | L25: 7.7%
I26: 2011 | J26: 368 | K26: -28.0% | L26: -14.6%
I27: 2012 | J27: 452 | K27: -11.4% | L27: 23.1%
I28: 2013 | J28: 432 | K28: -15.4% | L28: -4.5%
I29: 2014 | J29: 351 | K29: -31.2% | L29: -18.7%
I30: 2015 | J30: 397 | K30: -22.3% | L30: 12.9%
I31: 2016 | J31: 422 | K31: -17.4% | L31: 6.4%
I32: 2017 | J32: 475 | K32: -7.1% | L32: 12.5%
I33: 2018 | J33: 455 | K33: -10.9% | L33: -4.1%
I34: 2019 | J34: 465 | K34: -9.0% | L34: 2.0%
I35: 2020 | J35: 485 | K35: -5.0% | L35: 4.5%
B38: Indicator context:
B39: Indicator to track GHG emissions from business/commercial buildings.
B41: Notes:
B45: Trends:
B46: Emissions from business buildings have increased overall, and totalled 485 ktCO2e in 2020. Business building emissions have decreased by 5% since the base year, but in 2020 had increased by 4.5% from the previous year. Over CB1 (2016-2020) an increase of 15% was seen.
B48: Data source: | C48: NAEI GHG 2020 (Wales)
B49: Release date: | C49: 2022-07-06
B50: External link: | C50: https://naei.beis.gov.uk/reports/reports?section_id=3
B51: Notes:

Sheet B1.4
B2: B1.4 | C2: Indicator | E2: Tier | F2: Desired direction of travel | G2: CB1 progress | H2: Unit
C3: Emissions from public buildings | E3: 1 | F3: Decrease | G3: =K7 -> 3.00 | H3: ktCO2e
J6: % change | K6: Rating
I7: CB1 progress | J7: =(J35-J31)/J31 -> -7% | K7: =IF(J7="No data",0,IF(J7>0.05,1,IF(J7<-0.05,3,2))) -> 3
I9: Year | J9: Public Sector Buildings GHG Emissions (ktCO₂e) | K9: % change from base year | L9: % change from previous year
I10: BaseYear | J10: 792
I11: 1990 | J11: 792 | K11: =(J11-$J$10)/$J$10 -> 0.0%
I12: 1995 | J12: 718 | K12: -9.3% | L12: =(J12-J11)/J11 -> -9.3%
I13: 1998 | J13: 582 | K13: -26.5% | L13: -19.0%
I14: 1999 | J14: 595 | K14: -24.9% | L14: 2.3%
I15: 2000 | J15: 573 | K15: -27.7% | L15: -3.8%
I16: 2001 | J16: 563 | K16: -28.9% | L16: -1.6%
I17: 2002 | J17: 464 | K17: -41.4% | L17: -17.6%
I18: 2003 | J18: 462 | K18: -41.6% | L18: -0.4%
I19: 2004 | J19: 517 | K19: -34.7% | L19: 11.8%
I20: 2005 | J20: 527 | K20: -33.4% | L20: 2.0%
I21: 2006 | J21: 470 | K21: -40.6% | L21: -10.8%
I22: 2007 | J22: 433 | K22: -45.3% | L22: -7.9%
I23: 2008 | J23: 451 | K23: -43.0% | L23: 4.3%
I24: 2009 | J24: 413 | K24: -47.8% | L24: -8.5%
I25: 2010 | J25: 441 | K25: -44.3% | L25: 6.9%
I26: 2011 | J26: 372 | K26: -53.0% | L26: -15.7%
I27: 2012 | J27: 427 | K27: -46.1% | L27: 14.7%
I28: 2013 | J28: 428 | K28: -46.0% | L28: 0.1%
I29: 2014 | J29: 359 | K29: -54.7% | L29: -16.1%
I30: 2015 | J30: 331 | K30: -58.2% | L30: -7.8%
I31: 2016 | J31: 354 | K31: -55.3% | L31: 7.1%
I32: 2017 | J32: 360 | K32: -54.6% | L32: 1.5%
I33: 2018 | J33: 357 | K33: -54.9% | L33: -0.8%
I34: 2019 | J34: 336 | K34: -57.6% | L34: -5.9%
I35: 2020 | J35: 331 | K35: -58.2% | L35: -1.5%
B39: Indicator context:
B40: Indicator to track GHG emissions from public buildings.
B42: Notes:
B46: Trends:
B47: Emissions from public sector buildings have decreased overall, and totalled 331 ktCO2e in 2020. Public sector building emissions have decreased by 58.2% since the base year, and in 2020 had decreased by 1.5% from the previous year. Over CB1 (2016-2020), a decrease of 7% was seen.
B49: Data source: | C49: NAEI GHG 2020 (Wales)
B50: Release date: | C50: 2022-07-06
B51: External link: | C51: https://naei.beis.gov.uk/reports/reports?section_id=3
B52: Notes:
